[Event "2nd Kalyan Dombivali 2019"]
[Site "Kalyan"]
[Date "2019.01.30"]
[Round "2.14"]
[White "Tambe, Shardul"]
[Black "Subramanian, R M"]
[Result "0-1"]
[ECO "E33"]
[WhiteElo "1254"]
[BlackElo "1780"]
[Annotator "NA"]
[PlyCount "102"]
[EventDate "2019.01.28"]
[EventType "swiss"]
[EventRounds "10"]
[EventCountry "IND"]
[SourceTitle "playchess.com"]
[Source "ChessBase"]
[SourceQuality "1"]
[TimeControl "5400+30"]

1. d4 {[%emt 0:00:00]} Nf6 {[%emt 0:00:13]} 2. c4 {[%emt 0:00:00]} e6 {[%emt 0:00:08]} 3. Nc3 {[%emt 0:00:00]} Bb4 {[%emt 0:00:06]} 4. Qc2 {[%emt 0:00:06]} Nc6 {[%emt 0:00:26]} 5. Nf3 {[%emt 0:00:56]} Qe7 {[%emt 0:00:20]} 6. Bg5 {[%emt 0:02:03]} h6 {[%emt 0:02:28]} 7. Bh4 {[%emt 0:02:12]} g5 {[%emt 0:02:57]} 8. Bg3 {[%emt 0:00:31]} g4 {[%emt 0:00:09]} 9. Nd2 {[%emt 0:09:16]} Nxd4 {[%emt 0:00:10]} 10. Qd3 {[%emt 0:02:15]} e5 {[%emt 0:06:21]} 11. e3 {[%emt 0:03:37]} Bxc3 {[%emt 0:00:39]} 12. Qxc3 {[%emt 0:01:18]} d6 {[%emt 0:03:37]} 13. Bh4 {[%emt 0:05:18]} Nf5 {[%emt 0:12:07]} 14. Bxf6 {[%emt 0:02:37]} Qxf6 {[%emt 0:00:02]} 15. Ne4 {[%emt 0:01:46]} Qe7 {[%emt 0:01:51]} 16. Be2 {[%emt 0:02:30]} Nh4 {[%emt 0:02:34]} 17. g3 {[%emt 0:11:34]} Nf3+ {[%emt 0:03:30]} 18. Bxf3 {[%emt 0:01:26]} gxf3 {[%emt 0:00:02]} 19. Nd2 {[%emt 0:00:51]} Bh3 {[%emt 0:04:24]} 20. Rg1 {[%emt 0:05:52]} Bg2 {[%emt 0:03:15]} 21. e4 {[%emt 0:02:10]} Qe6 {[%emt 0:00:56]} 22. b3 {[%emt 0:02:26]} Qg4 {[%emt 0:01:01]} 23. O-O-O {[%emt 0:05:42]} O-O-O {[%emt 0:00:11]} 24. Rge1 {[%emt 0:02:46]} Rhf8 {[%emt 0:04:05]} 25. Qe3 {[%emt 0:05:26]} Kb8 {[%emt 0:02:29]} 26. Qxh6 {[%emt 0:02:33]} f5 {[%emt 0:01:08]} 27. exf5 {[%emt 0:04:54]} Qd4 {[%emt 0:04:09]} 28. Qe3 {[%emt 0:03:59]} Qa1+ {[%emt 0:02:56]} 29. Kc2 {[%emt 0:00:09]} Qxa2+ {[%emt 0:00:08]} 30. Kc3 {[%emt 0:00:57]} Qa5+ {[%emt 0:00:43]} 31. Kc2 {[%emt 0:02:29]} Bh3 {[%emt 0:00:47]} 32. Ra1 {[%emt 0:02:24]} Bxf5+ {[%emt 0:01:19]} 33. Kb2 {[%emt 0:01:00]} Qb6 {[%emt 0:00:57]} 34. Qxb6 {[%emt 0:03:32]} axb6 {[%emt 0:00:04]} 35. Ne4 {[%emt 0:00:50]} d5 {[%emt 0:01:56]} 36. Nd2 {[%emt 0:01:43]} e4 {[%emt 0:05:01]} 37. cxd5 {[%emt 0:01:54]} Rxd5 {[%emt 0:00:02]} 38. Nxe4 {[%emt 0:00:50]} Re8 {[%emt 0:06:20]} 39. Ng5 {[%emt 0:03:59]} Rd2+ {[%emt 0:01:54]} 40. Ka3 {[%emt 0:01:40]} Rxe1 {[%emt 0:01:10]} 41. Rxe1 {[%emt 0:00:01]} Rxf2 {[%emt 0:00:08]} 42. Re8+ {[%emt 0:00:41]} Ka7 {[%emt 0:00:07]} 43. Rf8 {[%emt 0:00:06]} Bb1 {[%emt 0:00:50]} 44. Rxf3 {[%emt 0:00:54]} Rxh2 {[%emt 0:00:03]} 45. Rc3 {[%emt 0:01:05]} c6 {[%emt 0:03:45]} 46. Rc1 {[%emt 0:01:15]} Bf5 {[%emt 0:00:41]} 47. Rf1 {[%emt 0:00:51]} Bc2 {[%emt 0:00:51]} 48. Kb4 {[%emt 0:01:18]} c5+ {[%emt 0:02:21]} 49. Kc3 {[%emt 0:00:13]} Bg6 {[%emt 0:00:10]} 50. Ra1+ {[%emt 0:01:19]} Kb8 {[%emt 0:00:07]} 51. Rf1 {[%emt 0:00:04]} Rc2# {[%emt 0:00:07]} 0-1

[Event "2nd Kalyan Dombivali 2019"]
[Site "Kalyan"]
[Date "2019.01.30"]
[Round "2.15"]
[White "Harshsingh, Negi"]
[Black "Javheri, Jaydev"]
[Result "0-1"]
[ECO "B83"]
[WhiteElo "1246"]
[BlackElo "1675"]
[Annotator "NA RC"]
[PlyCount "100"]
[EventDate "2019.01.28"]
[EventType "swiss"]
[EventRounds "10"]
[EventCountry "IND"]
[SourceTitle "playchess.com"]
[Source "ChessBase"]
[SourceQuality "1"]
[TimeControl "5400+30"]

1. e4 {[%emt 0:00:00]} c5 {[%emt 0:00:00]} 2. Nf3 {[%emt 0:01:53]} d6 {[%emt 0:00:00]} 3. Nc3 {[%emt 0:05:13]} Nc6 {[%emt 0:01:12]} 4. Be2 {[%emt 0:11:58]} Nf6 {[%emt 0:00:19]} 5. d4 {[%emt 0:03:52]} cxd4 {[%emt 0:00:28]} 6. Nxd4 {[%emt 0:00:30]} e6 {[%emt 0:00:30]} 7. Be3 {[%emt 0:07:23]} Be7 {[%emt 0:00:15]} 8. Nxc6 {[%emt 0:05:19]} bxc6 {[%emt 0:00:10]} 9. Qd2 {[%emt 0:00:55]} O-O {[%emt 0:00:27]} 10. g4 {[%emt 0:07:27]} d5 {[%emt 0:00:50]} 11. e5 {[%emt 0:04:13]} Nd7 {[%emt 0:00:19]} 12. g5 {[%emt 0:11:40]} c5 {[%emt 0:05:20]} 13. Bf4 {[%emt 0:02:15]} a6 {[%emt 0:05:00]} 14. Qd3 {[%emt 0:06:21]} Bxg5 {[%emt 0:02:53]} 15. Qg3 {[%emt 0:03:46]} Bxf4 {[%emt 0:00:29]} 16. Qxf4 {[%emt 0:00:05]} Qc7 {[%emt 0:00:36]} 17. Rg1 {[%emt 0:01:22]} Qxe5 {[%emt 0:01:10]} 18. Qh6 {[%emt 0:00:11]} Kh8 {[%emt 0:00:34]} 19. Qh4 {[%emt 0:00:38]} Qf6 {[%emt 0:03:00]} 20. Qg3 {[%emt 0:01:09]} Qg6 {[%emt 0:01:20]} 21. Qxg6 {[%emt 0:00:44]} fxg6 {[%emt 0:02:53]} 22. f3 {[%emt 0:01:44]} Ne5 {[%emt 0:01:20]} 23. Kf2 {[%emt 0:00:15]} Bd7 {[%emt 0:00:39]} 24. Rg5 {[%emt 0:00:24]} Rf5 {[%emt 0:02:08]} 25. Rag1 {[%emt 0:00:36]} Bc6 {[%emt 0:06:45]} 26. Rxf5 {[%emt 0:00:41]} gxf5 {[%emt 0:00:41]} 27. f4 {[%emt 0:00:34]} Ng6 {[%emt 0:00:39]} 28. Kg3 {[%emt 0:00:15]} d4 {[%emt 0:01:26]} 29. Nd1 {[%emt 0:00:29]} Bd5 {[%emt 0:07:18]} 30. Bf3 {[%emt 0:01:07]} Bxf3 {[%emt 0:03:33]} 31. Kxf3 {[%emt 0:00:12]} Kg8 {[%emt 0:00:22]} 32. Nf2 {[%emt 0:00:27]} e5 {[%emt 0:01:58]} 33. fxe5 {[%emt 0:00:28]} Nxe5+ {[%emt 0:00:08]} 34. Kf4 {[%emt 0:00:13]} Nc4 {[%emt 0:00:17]} 35. b3 {[%emt 0:00:10]} Ne3 {[%emt 0:00:23]} 36. Nd3 {[%emt 0:00:31]} Rc8 {[%emt 0:01:01]} 37. Rc1 {[%emt 0:00:42]} h6 {[%emt 0:02:00]} 38. c3 {[%emt 0:00:17]} Nd5+ {[%emt 0:00:35]} 39. Kxf5 {[%emt 0:00:48]} Nxc3 {[%emt 0:00:06]} 40. Ke5 {[%emt 0:00:34]} c4 {[%emt 0:08:33]} 41. Nb2 {[%emt 0:03:22]} cxb3 {[%emt 0:00:26]} 42. axb3 {[%emt 0:00:45]} Re8+ {[%emt 0:02:14]} 43. Kd6 {[%emt 0:00:38]} Rb8 {[%emt 0:02:08]} 44. Nd3 {[%emt 0:00:32]} Rxb3 {[%emt 0:00:23]} 45. Nc5 {[%emt 0:00:42]} Rb6+ {[%emt 0:05:31]} 46. Kc7 {[%emt 0:00:20]} Nd5+ {[%emt 0:00:32]} 47. Kd7 {[%emt 0:00:18]} Nb4 {[%emt 0:00:53]} 48. Kc7 {[%emt 0:00:39]} Rf6 {[%emt 0:01:23]} 49. Rc4 {[%emt 0:00:15]} a5 {[%emt 0:00:53]} 50. Nb7 {[%emt 0:00:24]} Rc6+ {[%emt 0:02:02]} 0-1

[Event "2nd Kalyan Dombivali 2019"]
[Site "Kalyan"]
[Date "2019.01.30"]
[Round "2.16"]
[White "Shreyas, Ghadi"]
[Black "Kunnekar, Vanshri"]
[Result "1-0"]
[ECO "D10"]
[WhiteElo "1653"]
[BlackElo "1269"]
[Annotator "NA RC"]
[PlyCount "91"]
[EventDate "2019.01.28"]
[EventType "swiss"]
[EventRounds "10"]
[EventCountry "IND"]
[SourceTitle "playchess.com"]
[Source "ChessBase"]
[SourceQuality "1"]
[TimeControl "5400+30"]

1. d4 {[%emt 0:11:10]} d5 {[%emt 0:00:00]} 2. c4 {[%emt 0:00:37]} c6 {[%emt 0:00:21]} 3. Nc3 {[%emt 0:00:04]} Nf6 {[%emt 0:00:08]} 4. cxd5 {[%emt 0:00:03]} cxd5 {[%emt 0:00:15]} 5. Bf4 {[%emt 0:00:03]} Bf5 {[%emt 0:00:34]} 6. e3 {[%emt 0:00:27]} e6 {[%emt 0:00:11]} 7. Qb3 {[%emt 0:01:02]} Qd7 {[%emt 0:02:19]} 8. Bxb8 {[%emt 0:00:11]} a6 {[%emt 0:01:23]} 9. Be5 {[%emt 0:00:07]} Be7 {[%emt 0:00:10]} 10. Nf3 {[%emt 0:00:32]} O-O {[%emt 0:00:11]} 11. Be2 {[%emt 0:00:05]} Rfc8 {[%emt 0:01:44]} 12. O-O {[%emt 0:00:13]} Ne4 {[%emt 0:00:07]} 13. Rac1 {[%emt 0:02:07]} h5 {[%emt 0:02:06]} 14. Bg3 {[%emt 0:04:11]} f6 {[%emt 0:08:50]} 15. Nxe4 {[%emt 0:01:00]} dxe4 {[%emt 0:00:32]} 16. Nh4 {[%emt 0:00:03]} Bg4 {[%emt 0:01:34]} 17. Bxg4 {[%emt 0:00:10]} hxg4 {[%emt 0:00:08]} 18. Ng6 {[%emt 0:00:13]} Bd6 {[%emt 0:01:19]} 19. Bxd6 {[%emt 0:00:15]} Qxd6 {[%emt 0:00:03]} 20. Qxb7 {[%emt 0:01:01]} Rcb8 {[%emt 0:00:44]} 21. Qxe4 {[%emt 0:00:16]} f5 {[%emt 0:01:19]} 22. Qf4 {[%emt 0:00:45]} Qxf4 {[%emt 0:03:59]} 23. Nxf4 {[%emt 0:00:16]} Rxb2 {[%emt 0:00:33]} 24. Nxe6 {[%emt 0:00:13]} Rxa2 {[%emt 0:00:06]} 25. Nc5 {[%emt 0:00:12]} a5 {[%emt 0:00:33]} 26. Ra1 {[%emt 0:00:05]} Rc2 {[%emt 0:01:04]} 27. g3 {[%emt 0:00:07]} Rc4 {[%emt 0:01:51]} 28. Ra4 {[%emt 0:00:20]} Rc2 {[%emt 0:00:25]} 29. Rb1 {[%emt 0:00:14]} g5 {[%emt 0:01:38]} 30. Ne6 {[%emt 0:02:52]} f4 {[%emt 0:01:23]} 31. gxf4 {[%emt 0:00:04]} gxf4 {[%emt 0:00:09]} 32. Nxf4 {[%emt 0:00:03]} Rd2 {[%emt 0:01:07]} 33. Rba1 {[%emt 0:00:31]} Rc8 {[%emt 0:00:15]} 34. R4a2 {[%emt 0:00:04]} Rxa2 {[%emt 0:00:28]} 35. Rxa2 {[%emt 0:00:01]} Kf7 {[%emt 0:00:28]} 36. Rxa5 {[%emt 0:00:04]} Kf6 {[%emt 0:00:02]} 37. Kg2 {[%emt 0:00:50]} Rc2 {[%emt 0:00:15]} 38. d5 {[%emt 0:00:12]} Ke5 {[%emt 0:00:16]} 39. Ra6 {[%emt 0:00:03]} Rd2 {[%emt 0:00:15]} 40. Kg3 {[%emt 0:00:23]} Kf5 {[%emt 0:00:11]} 41. Re6 {[%emt 0:00:17]} Rd4 {[%emt 0:07:08]} 42. exd4 {[%emt 0:00:32]} Kg5 {[%emt 0:00:22]} 43. d6 {[%emt 0:00:10]} Kf5 {[%emt 0:00:12]} 44. d7 {[%emt 0:00:03]} Kg5 {[%emt 0:00:17]} 45. d8=B+ Kf5 {[%emt 0:00:09]} 46. Re5# {[%emt 0:00:09]} 1-0

[Event "2nd Kalyan Dombivali 2019"]
[Site "Kalyan"]
[Date "2019.01.30"]
[Round "2.17"]
[White "Shubham, Rahul Kamble"]
[Black "Ankur, Mahesh Gokhale"]
[Result "0-1"]
[ECO "B21"]
[WhiteElo "1244"]
[BlackElo "1628"]
[Annotator "NA RC"]
[PlyCount "104"]
[EventDate "2019.01.28"]
[EventType "swiss"]
[EventRounds "10"]
[EventCountry "IND"]
[SourceTitle "playchess.com"]
[Source "ChessBase"]
[SourceQuality "1"]
[TimeControl "5400+30"]

1. e4 {[%emt 0:00:00]} c5 {[%emt 0:00:00]} 2. d4 {[%emt 0:00:00]} cxd4 {[%emt 0:00:00]} 3. c3 {[%emt 0:00:00]} Nf6 {[%emt 0:00:02]} 4. e5 {[%emt 0:00:00]} Nd5 {[%emt 0:00:08]} 5. cxd4 {[%emt 0:00:00]} e6 {[%emt 0:00:18]} 6. Nf3 {[%emt 0:01:41]} b6 {[%emt 0:00:06]} 7. Nc3 {[%emt 0:01:16]} Bb7 {[%emt 0:00:11]} 8. Bc4 {[%emt 0:01:17]} Nxc3 {[%emt 0:01:35]} 9. bxc3 {[%emt 0:00:03]} Qc7 {[%emt 0:00:53]} 10. Qd3 {[%emt 0:04:55]} Nc6 {[%emt 0:09:54]} 11. O-O {[%emt 0:10:18]} Na5 {[%emt 0:07:05]} 12. Bb3 {[%emt 0:10:30]} Rc8 {[%emt 0:04:29]} 13. Bd2 {[%emt 0:00:29]} Nc4 {[%emt 0:00:35]} 14. Bxc4 {[%emt 0:08:38]} Qxc4 {[%emt 0:00:19]} 15. Qe3 {[%emt 0:03:29]} Qd5 {[%emt 0:04:47]} 16. Ne1 {[%emt 0:07:49]} Qe4 {[%emt 0:02:53]} 17. Qxe4 {[%emt 0:04:35]} Bxe4 {[%emt 0:00:08]} 18. f3 {[%emt 0:01:10]} Bd5 {[%emt 0:00:49]} 19. Nc2 {[%emt 0:01:21]} Bc4 {[%emt 0:07:12]} 20. Rfc1 {[%emt 0:02:44]} d5 {[%emt 0:02:01]} 21. a4 {[%emt 0:02:02]} a5 {[%emt 0:03:52]} 22. Rcb1 {[%emt 0:07:02]} Bd3 {[%emt 0:14:19]} 23. Rb2 {[%emt 0:00:24]} Rc6 {[%emt 0:06:13]} 24. Na3 {[%emt 0:05:08]} Be7 {[%emt 0:04:27]} 25. Kf2 {[%emt 0:01:29]} Bd8 {[%emt 0:07:05]} 26. Ke3 {[%emt 0:01:56]} Bc4 {[%emt 0:01:40]} 27. Nb5 {[%emt 0:02:21]} Bxb5 {[%emt 0:00:11]} 28. axb5 {[%emt 0:02:29]} Rc4 {[%emt 0:00:19]} 29. Rba2 {[%emt 0:00:05]} f6 {[%emt 0:04:11]} 30. Ra4 {[%emt 0:01:33]} Rxa4 {[%emt 0:01:21]} 31. Rxa4 {[%emt 0:00:03]} fxe5 {[%emt 0:01:14]} 32. dxe5 {[%emt 0:00:17]} Be7 {[%emt 0:01:19]} 33. Kd3 {[%emt 0:01:17]} Bc5 {[%emt 0:05:18]} 34. Be3 {[%emt 0:00:06]} Bxe3 {[%emt 0:00:18]} 35. Kxe3 {[%emt 0:00:02]} Ke7 {[%emt 0:00:17]} 36. c4 {[%emt 0:01:16]} Rc8 {[%emt 0:04:57]} 37. Kd4 {[%emt 0:06:31]} Rc5 {[%emt 0:00:42]} 38. cxd5 {[%emt 0:01:17]} Rxd5+ {[%emt 0:00:07]} 39. Ke4 {[%emt 0:02:24]} Rxb5 {[%emt 0:00:07]} 40. f4 {[%emt 0:01:00]} Rb2 {[%emt 0:01:19]} 41. Kf3 {[%emt 0:00:49]} Rd2 {[%emt 0:00:23]} 42. h4 {[%emt 0:01:07]} Rd7 {[%emt 0:02:04]} 43. g4 {[%emt 0:01:17]} Ra7 {[%emt 0:00:06]} 44. Ke3 {[%emt 0:01:00]} b5 {[%emt 0:00:09]} 45. Ra1 {[%emt 0:00:11]} a4 {[%emt 0:00:20]} 46. Kd3 {[%emt 0:00:22]} a3 {[%emt 0:01:33]} 47. Kc3 {[%emt 0:00:53]} Ra4 {[%emt 0:00:11]} 48. Kb3 {[%emt 0:00:04]} Rxf4 {[%emt 0:00:11]} 49. Rxa3 {[%emt 0:00:18]} Rf3+ {[%emt 0:00:19]} 50. Kb4 {[%emt 0:00:18]} Rxa3 {[%emt 0:00:07]} 51. Kxa3 {[%emt 0:00:16]} Kd7 {[%emt 0:00:03]} 52. Kb4 {[%emt 0:00:23]} Kc6 {[%emt 0:00:06]} 0-1

[Event "2nd Kalyan Dombivali 2019"]
[Site "Kalyan"]
[Date "2019.01.30"]
[Round "2.18"]
[White "Chhabra, Aakash"]
[Black "Kshirsagar, Nimesh Dinesh"]
[Result "1-0"]
[ECO "A45"]
[WhiteElo "1620"]
[BlackElo "1257"]
[Annotator "NA RC"]
[PlyCount "99"]
[EventDate "2019.01.28"]
[EventType "swiss"]
[EventRounds "10"]
[EventCountry "IND"]
[SourceTitle "playchess.com"]
[Source "ChessBase"]
[SourceQuality "1"]
[TimeControl "5400+30"]

1. d4 {[%emt 0:00:00]} Nf6 {[%emt 0:00:00]} 2. Bg5 {[%emt 0:00:00]} d5 {[%emt 0:00:00]} 3. e3 {[%emt 0:00:00]} e6 {[%emt 0:00:29]} 4. Bd3 {[%emt 0:00:00]} Be7 {[%emt 0:00:58]} 5. Nf3 {[%emt 0:00:05]} c6 {[%emt 0:03:13]} 6. O-O {[%emt 0:00:11]} O-O {[%emt 0:00:55]} 7. Nbd2 {[%emt 0:00:06]} h6 {[%emt 0:01:36]} 8. Bh4 {[%emt 0:00:10]} Nbd7 {[%emt 0:03:40]} 9. c3 {[%emt 0:00:10]} b6 {[%emt 0:00:59]} 10. Bg3 {[%emt 0:05:20]} Bb7 {[%emt 0:04:34]} 11. Qe2 {[%emt 0:00:38]} c5 {[%emt 0:04:57]} 12. Ne5 {[%emt 0:05:02]} c4 {[%emt 0:06:20]} 13. Bc2 {[%emt 0:00:36]} Nxe5 {[%emt 0:02:04]} 14. Bxe5 {[%emt 0:00:31]} Bd6 {[%emt 0:01:18]} 15. Bxf6 {[%emt 0:02:34]} Qxf6 {[%emt 0:00:49]} 16. e4 {[%emt 0:00:28]} Qe7 {[%emt 0:07:00]} 17. e5 {[%emt 0:01:58]} Bc7 {[%emt 0:00:06]} 18. f4 {[%emt 0:00:59]} f6 {[%emt 0:01:49]} 19. exf6 {[%emt 0:00:48]} Rxf6 {[%emt 0:01:41]} 20. g3 {[%emt 0:00:14]} Bc6 {[%emt 0:02:14]} 21. Rae1 {[%emt 0:01:50]} b5 {[%emt 0:05:23]} 22. Nf3 {[%emt 0:03:46]} Be8 {[%emt 0:03:18]} 23. Ne5 {[%emt 0:07:18]} Bxe5 {[%emt 0:04:22]} 24. Qxe5 {[%emt 0:01:44]} Qd7 {[%emt 0:01:42]} 25. g4 {[%emt 0:01:38]} Bg6 {[%emt 0:03:39]} 26. Bxg6 {[%emt 0:05:08]} Rxg6 {[%emt 0:00:24]} 27. Qh5 {[%emt 0:00:55]} Qf7 {[%emt 0:07:16]} 28. f5 {[%emt 0:03:14]} Rf6 {[%emt 0:04:42]} 29. Qxf7+ {[%emt 0:01:29]} Kxf7 {[%emt 0:00:40]} 30. fxe6+ {[%emt 0:00:07]} Ke7 {[%emt 0:00:17]} 31. Rxf6 {[%emt 0:00:49]} gxf6 {[%emt 0:00:41]} 32. Kg2 {[%emt 0:01:07]} Re8 {[%emt 0:02:35]} 33. Kg3 {[%emt 0:03:14]} Kd6 {[%emt 0:03:25]} 34. Kh4 {[%emt 0:01:18]} Ke7 {[%emt 0:00:32]} 35. h3 {[%emt 0:04:51]} Kf8 {[%emt 0:03:13]} 36. e7+ {[%emt 0:00:51]} Kf7 {[%emt 0:00:07]} 37. Kh5 {[%emt 0:07:21]} a5 {[%emt 0:06:25]} 38. a3 {[%emt 0:00:49]} Kg7 {[%emt 0:00:43]} 39. h4 {[%emt 0:04:42]} Kf7 {[%emt 0:00:18]} 40. g5 {[%emt 0:01:46]} hxg5 {[%emt 0:00:41]} 41. hxg5 {[%emt 0:01:07]} fxg5 {[%emt 0:01:27]} 42. Kxg5 {[%emt 0:00:09]} Rxe7 {[%emt 0:00:44]} 43. Rxe7+ {[%emt 0:00:09]} Kxe7 {[%emt 0:00:11]} 44. Kf5 {[%emt 0:00:06]} Kd6 {[%emt 0:00:38]} 45. Kf6 {[%emt 0:00:09]} a4 {[%emt 0:05:15]} 46. Kf5 {[%emt 0:00:23]} Kd7 {[%emt 0:00:24]} 47. Ke5 {[%emt 0:00:07]} Kc6 {[%emt 0:00:05]} 48. Ke6 {[%emt 0:00:06]} Kc7 49. Kxd5 {[%emt 0:00:06]} Kd7 {[%emt 0:00:11]} 50. Kc5 {[%emt 0:00:09]} 1-0

[Event "2nd Kalyan Dombivali 2019"]
[Site "Kalyan"]
[Date "2019.01.30"]
[Round "2.19"]
[White "Parkar, Mandar"]
[Black "Shivshankar, Iyer S"]
[Result "0-1"]
[ECO "B24"]
[WhiteElo "1239"]
[BlackElo "1619"]
[Annotator "NA RC"]
[PlyCount "60"]
[EventDate "2019.01.28"]
[EventType "swiss"]
[EventRounds "10"]
[EventCountry "IND"]
[SourceTitle "playchess.com"]
[Source "ChessBase"]
[SourceQuality "1"]
[TimeControl "5400+30"]

1. e4 {[%emt 0:00:00]} c5 {[%emt 0:00:00]} 2. Nc3 {[%emt 0:02:00]} Nc6 {[%emt 0:00:00]} 3. g3 {[%emt 0:01:49]} g6 {[%emt 0:01:08]} 4. Bg2 {[%emt 0:02:14]} Bg7 {[%emt 0:00:07]} 5. Nge2 {[%emt 0:02:28]} d6 {[%emt 0:02:26]} 6. h3 {[%emt 0:05:52]} Bd7 {[%emt 0:03:37]} 7. O-O {[%emt 0:05:12]} h5 {[%emt 0:10:17]} 8. d3 {[%emt 0:08:10]} a6 {[%emt 0:04:26]} 9. Nd5 {[%emt 0:09:04]} e6 {[%emt 0:05:17]} 10. Ne3 {[%emt 0:01:29]} Nge7 {[%emt 0:01:22]} 11. Kh2 {[%emt 0:04:16]} Qc7 {[%emt 0:00:37]} 12. f4 {[%emt 0:04:05]} f5 {[%emt 0:03:56]} 13. h4 {[%emt 0:06:34]} O-O-O {[%emt 0:01:48]} 14. c4 {[%emt 0:10:20]} Be8 {[%emt 0:07:39]} 15. Rb1 {[%emt 0:10:16]} Bf7 {[%emt 0:00:52]} 16. Bd2 {[%emt 0:02:24]} fxe4 {[%emt 0:04:10]} 17. dxe4 {[%emt 0:00:35]} d5 {[%emt 0:03:52]} 18. cxd5 {[%emt 0:02:43]} exd5 {[%emt 0:00:05]} 19. e5 {[%emt 0:02:00]} d4 {[%emt 0:00:19]} 20. Bh3+ {[%emt 0:02:11]} Kb8 {[%emt 0:00:04]} 21. Ng2 {[%emt 0:02:10]} Bd5 {[%emt 0:03:42]} 22. a3 {[%emt 0:01:09]} b6 {[%emt 0:04:28]} 23. Ne1 {[%emt 0:03:37]} Be4 {[%emt 0:11:08]} 24. Ra1 {[%emt 0:01:16]} Nd5 {[%emt 0:03:04]} 25. Nf3 {[%emt 0:01:53]} Bh6 {[%emt 0:09:25]} 26. Nc1 {[%emt 0:03:42]} Rhe8 {[%emt 0:02:17]} 27. Re1 {[%emt 0:01:39]} Bxf3 {[%emt 0:01:46]} 28. Qxf3 {[%emt 0:00:04]} Nxe5 {[%emt 0:00:20]} 29. Qb3 {[%emt 0:02:01]} c4 {[%emt 0:00:39]} 30. Qa4 {[%emt 0:00:44]} Nf3+ {[%emt 0:00:07]} 0-1

[Event "2nd Kalyan Dombivali 2019"]
[Site "Kalyan"]
[Date "2019.01.30"]
[Round "2.20"]
[White "Akshit, Jha"]
[Black "Aditi, Yogesh Kayal"]
[Result "1-0"]
[ECO "C11"]
[WhiteElo "1604"]
[BlackElo "1251"]
[Annotator "NA RC"]
[PlyCount "57"]
[EventDate "2019.01.28"]
[EventType "swiss"]
[EventRounds "10"]
[EventCountry "IND"]
[SourceTitle "playchess.com"]
[Source "ChessBase"]
[SourceQuality "1"]
[TimeControl "5400+30"]

1. e4 {[%emt 0:01:12]} e6 {[%emt 0:00:00]} 2. Nf3 {[%emt 0:00:05]} d5 {[%emt 0:00:00]} 3. Nc3 {[%emt 0:00:05]} d4 {[%emt 0:00:01]} 4. Ne2 {[%emt 0:00:05]} c5 {[%emt 0:00:19]} 5. c3 {[%emt 0:00:04]} Nf6 {[%emt 0:00:28]} 6. e5 {[%emt 0:00:11]} Nfd7 {[%emt 0:00:16]} 7. cxd4 {[%emt 0:02:30]} cxd4 {[%emt 0:00:13]} 8. Nexd4 {[%emt 0:02:02]} Nxe5 {[%emt 0:00:13]} 9. Bb5+ {[%emt 0:00:28]} Ned7 {[%emt 0:03:05]} 10. O-O {[%emt 0:01:16]} Bc5 {[%emt 0:00:26]} 11. Nb3 {[%emt 0:00:49]} Bb6 {[%emt 0:00:43]} 12. d4 {[%emt 0:00:10]} O-O {[%emt 0:00:28]} 13. Bg5 {[%emt 0:01:51]} Nf6 {[%emt 0:02:42]} 14. Ne5 {[%emt 0:02:22]} a6 {[%emt 0:01:58]} 15. Be2 {[%emt 0:01:59]} Bc7 {[%emt 0:00:38]} 16. Qc2 {[%emt 0:01:09]} Nbd7 {[%emt 0:00:52]} 17. f4 {[%emt 0:03:41]} Bb6 {[%emt 0:02:25]} 18. Kh1 {[%emt 0:07:39]} Qc7 {[%emt 0:00:33]} 19. Qd3 {[%emt 0:01:26]} Nxe5 {[%emt 0:01:56]} 20. fxe5 {[%emt 0:00:49]} Nd5 {[%emt 0:01:46]} 21. Qe4 {[%emt 0:02:24]} Qd7 {[%emt 0:04:30]} 22. Bd3 {[%emt 0:01:35]} g6 {[%emt 0:00:48]} 23. Qh4 {[%emt 0:02:41]} Bd8 {[%emt 0:01:16]} 24. Bf6 {[%emt 0:00:05]} Bxf6 {[%emt 0:01:26]} 25. exf6 {[%emt 0:00:06]} Kh8 {[%emt 0:00:43]} 26. Rf3 {[%emt 0:00:20]} Qd8 {[%emt 0:01:15]} 27. Raf1 {[%emt 0:00:17]} Rg8 {[%emt 0:02:20]} 28. Qxh7+ {[%emt 0:00:18]} Kxh7 {[%emt 0:01:02]} 29. Rh3# 1-0

[Event "2nd Kalyan Dombivali 2019"]
[Site "Kalyan"]
[Date "2019.01.30"]
[Round "3"]
[White "Kumar, Gaurav"]
[Black "Sarode Om"]
[Result "1/2-1/2"]
[ECO "C11"]
[WhiteElo "2128"]
[BlackElo "1427"]
[Annotator "RC"]
[PlyCount "49"]
[EventDate "2019.01.28"]
[EventType "swiss"]
[EventRounds "10"]
[EventCountry "IND"]
[SourceTitle "playchess.com"]
[Source "ChessBase"]
[SourceQuality "1"]
[TimeControl "5400+30"]

1. e4 {[%emt 0:00:00]} e6 {[%emt 0:00:00]} 2. d4 {[%emt 0:00:00]} d5 {[%emt 0:00:00]} 3. Nc3 {[%emt 0:00:00]} Nf6 {[%emt 0:00:41]} 4. e5 {[%emt 0:00:00]} Nfd7 {[%emt 0:00:10]} 5. f4 {[%emt 0:00:00]} a6 {[%emt 0:00:25]} 6. Nf3 {[%emt 0:00:00]} c5 {[%emt 0:00:49]} 7. Be3 {[%emt 0:00:00]} Nc6 {[%emt 0:01:55]} 8. Qd2 {[%emt 0:00:00]} Qb6 {[%emt 0:00:46]} 9. O-O-O {[%emt 0:09:45]} c4 {[%emt 0:02:54]} 10. f5 {[%emt 0:00:12]} Bb4 {[%emt 0:06:32]} 11. fxe6 {[%emt 0:01:26]} fxe6 {[%emt 0:00:49]} 12. Bxc4 {[%emt 0:20:33]} Na7 {[%emt 0:12:38]} 13. Bb3 {[%emt 0:21:03]} Nb5 {[%emt 0:00:37]} 14. Qd3 {[%emt 0:00:06]} Nxc3 {[%emt 0:12:25]} 15. bxc3 {[%emt 0:00:11]} Ba3+ {[%emt 0:00:05]} 16. Kd2 {[%emt 0:00:09]} Qa5 {[%emt 0:00:46]} 17. Ng5 {[%emt 0:02:48]} Nf8 {[%emt 0:01:57]} 18. Rhf1 {[%emt 0:22:22]} Bd7 {[%emt 0:01:08]} 19. Nxh7 {[%emt 0:00:27]} Nxh7 {[%emt 0:04:05]} 20. Qg6+ {[%emt 0:00:27]} Kd8 {[%emt 0:00:42]} 21. Qxg7 {[%emt 0:06:13]} Kc7 {[%emt 0:00:46]} 22. Rf7 {[%emt 0:00:58]} Qb5 {[%emt 0:00:59]} 23. Qh6 {[%emt 0:08:45]} Rag8 {[%emt 0:01:57]} 24. Rg7 {[%emt 0:00:06]} Nf8 {[%emt 0:02:32]} 25. Qg5 {[%emt 0:03:59]} 1/2-1/2